[Event "*** SCC Grand Prix: Titled Tuesday Blitz"]
[Site "Chess.com"]
[Date "2020.10.06"]
[Round "10"]
[White "Happy1712Drummer"]
[Black "chessplayer9919"]
[Result "0-1"]
[WhiteElo "2397"]
[BlackElo "2595"]
[TimeControl "180+1"]
[EndTime "11:58:50 PDT"]
[Termination "chessplayer9919 won by checkmate"]

1. d4 {[%clk 0:03:00.9]} 1... Nf6 {[%clk 0:02:58.5]} 2. Nf3 {[%clk 0:02:59.1]}
2... e6 {[%clk 0:02:58.5]} 3. c3 {[%clk 0:02:56.8]} 3... c5 {[%clk 0:02:58.4]}
4. Bg5 {[%clk 0:02:55.8]} 4... Nc6 {[%clk 0:02:58.5]} 5. e3 {[%clk 0:02:55.3]}
5... Be7 {[%clk 0:02:58.8]} 6. Nbd2 {[%clk 0:02:53.9]} 6... d5 {[%clk 0:02:59]}
7. Bb5 {[%clk 0:02:52.2]} 7... O-O {[%clk 0:02:59]} 8. O-O {[%clk 0:02:50.7]}
8... Nd7 {[%clk 0:02:58.8]} 9. Bf4 {[%clk 0:02:48.7]} 9... a6 {[%clk 0:02:54.4]}
10. Bd3 {[%clk 0:02:46.5]} 10... Re8 {[%clk 0:02:52.5]} 11. h4 {[%clk
0:02:43.3]} 11... Bxh4 {[%clk 0:02:43.7]} 12. Nxh4 {[%clk 0:02:39.6]} 12... Qxh4
{[%clk 0:02:44.6]} 13. Nf3 {[%clk 0:02:39.2]} 13... Qe7 {[%clk 0:02:30]} 14.
dxc5 {[%clk 0:02:14.9]} 14... e5 {[%clk 0:02:21.6]} 15. Bg5 {[%clk 0:01:47.2]}
15... f6 {[%clk 0:02:13.5]} 16. Bh4 {[%clk 0:01:39.7]} 16... e4 {[%clk
0:02:13.4]} 17. Bc2 {[%clk 0:01:32.6]} 17... exf3 {[%clk 0:02:12.8]} 18. Qxd5+
{[%clk 0:01:30.2]} 18... Kh8 {[%clk 0:02:10.5]} 19. Qh5 {[%clk 0:01:25.7]} 19...
Nf8 {[%clk 0:02:07.6]} 20. gxf3 {[%clk 0:01:20.9]} 20... Qe5 {[%clk 0:01:57.7]}
21. Qf7 {[%clk 0:01:03.3]} 21... Be6 {[%clk 0:01:46.4]} 22. Qxb7 {[%clk
0:01:01.2]} 22... Qxc5 {[%clk 0:01:36.7]} 23. Bg3 {[%clk 0:00:53.9]} 23... Ne5
{[%clk 0:01:22.5]} 24. Be4 {[%clk 0:00:38.2]} 24... Rab8 {[%clk 0:01:13.2]} 25.
Qxa6 {[%clk 0:00:33.9]} 25... f5 {[%clk 0:01:13.4]} 26. b4 {[%clk 0:00:22.1]}
26... Qc7 {[%clk 0:01:03]} 27. Bc2 {[%clk 0:00:12.5]} 27... Qxc3 {[%clk
0:00:50.1]} 28. Rac1 {[%clk 0:00:11.7]} 28... Bc4 {[%clk 0:00:47.7]} 29. Bxf5
{[%clk 0:00:09.6]} 29... Qxc1 {[%clk 0:00:43.8]} 30. Rxc1 {[%clk 0:00:07.2]}
30... Bxa6 {[%clk 0:00:43.9]} 31. Kg2 {[%clk 0:00:04.5]} 31... Bb7 {[%clk
0:00:39.6]} 32. Be4 {[%clk 0:00:05.1]} 32... Bxe4 {[%clk 0:00:39.4]} 33. fxe4
{[%clk 0:00:06]} 33... Rxb4 {[%clk 0:00:39.7]} 34. Rc5 {[%clk 0:00:05.2]} 34...
Rxe4 {[%clk 0:00:38.5]} 35. Rc7 {[%clk 0:00:04.5]} 35... h5 {[%clk 0:00:37.7]}
36. Bf4 {[%clk 0:00:03.9]} 36... Nfg6 {[%clk 0:00:36.8]} 37. Bg5 {[%clk
0:00:03.6]} 37... Rg4+ {[%clk 0:00:36.9]} 38. Kf1 {[%clk 0:00:04]} 38... Rxg5
{[%clk 0:00:37]} 39. f4 {[%clk 0:00:04.8]} 39... Rf5 {[%clk 0:00:35.8]} 40. Ke2
{[%clk 0:00:04.4]} 40... Nxf4+ {[%clk 0:00:35.2]} 41. exf4 {[%clk 0:00:04.2]}
41... Rxf4 {[%clk 0:00:36.1]} 42. Ke3 {[%clk 0:00:04.2]} 42... Ng6+ {[%clk
0:00:34.4]} 43. Kd3 {[%clk 0:00:03.9]} 43... h4 {[%clk 0:00:34.4]} 44. Kd2
{[%clk 0:00:03.7]} 44... h3 {[%clk 0:00:34.4]} 45. Rc3 {[%clk 0:00:04.3]} 45...
Rh4 {[%clk 0:00:33.7]} 46. Rxh3 {[%clk 0:00:05.2]} 46... Re2+ {[%clk 0:00:30.3]}
47. Kxe2 {[%clk 0:00:04.5]} 47... Rxh3 {[%clk 0:00:30.3]} 48. a4 {[%clk
0:00:05.4]} 48... Ra3 {[%clk 0:00:29.9]} 49. a5 {[%clk 0:00:06.3]} 49... Ne7
{[%clk 0:00:30.2]} 50. a6 {[%clk 0:00:07.2]} 50... Nc8 {[%clk 0:00:30.4]} 51. a7
{[%clk 0:00:08.1]} 51... Nb6 {[%clk 0:00:30.1]} 52. Kd2 {[%clk 0:00:08.5]} 52...
Na8 {[%clk 0:00:30.2]} 53. Kc2 {[%clk 0:00:09.4]} 53... g5 {[%clk 0:00:30.5]}
54. Kd2 {[%clk 0:00:09.4]} 54... g4 {[%clk 0:00:29.3]} 55. Ke2 {[%clk
0:00:10.3]} 55... g3 {[%clk 0:00:30.2]} 56. Kf1 {[%clk 0:00:10.1]} 56... Ra2
{[%clk 0:00:30.4]} 57. Kg1 {[%clk 0:00:09.8]} 57... Kg7 {[%clk 0:00:30.8]} 58.
Kf1 {[%clk 0:00:10.7]} 58... Kg6 {[%clk 0:00:31.3]} 59. Kg1 {[%clk 0:00:11.6]}
59... Kg5 {[%clk 0:00:31.8]} 60. Kf1 {[%clk 0:00:12.5]} 60... Kg4 {[%clk
0:00:31.7]} 61. Ke1 {[%clk 0:00:13.4]} 61... Kf3 {[%clk 0:00:32]} 62. Kd1 {[%clk
0:00:14.3]} 62... Rf2 {[%clk 0:00:31.2]} 63. Kc1 {[%clk 0:00:15.2]} 63... Nb6
{[%clk 0:00:30.9]} 64. Kb1 {[%clk 0:00:16.1]} 64... g2 {[%clk 0:00:30.4]} 65.
Kc1 {[%clk 0:00:15.6]} 65... Nd5 {[%clk 0:00:30.3]} 66. Kd1 {[%clk 0:00:16.5]}
66... g1=R# {[%clk 0:00:24.7]} 0-1

[Event "*** SCC Grand Prix: Titled Tuesday Blitz"]
[Site "Chess.com"]
[Date "2020.10.06"]
[Round "10"]
[White "Deepweb2020"]
[Black "teacher4chess"]
[Result "1-0"]
[WhiteElo "2219"]
[BlackElo "2005"]
[TimeControl "180+1"]
[EndTime "11:58:50 PDT"]
[Termination "Deepweb2020 won by resignation"]

1. d4 {[%clk 0:03:00.9]} 1... e6 {[%clk 0:02:58.7]} 2. c4 {[%clk 0:03:01.8]}
2... b6 {[%clk 0:02:58.5]} 3. g3 {[%clk 0:03:02.6]} 3... Bb7 {[%clk 0:02:58.2]}
4. Nf3 {[%clk 0:03:03.5]} 4... Nf6 {[%clk 0:02:57.5]} 5. Bg2 {[%clk 0:03:03.8]}
5... c5 {[%clk 0:02:54.9]} 6. O-O {[%clk 0:03:02.7]} 6... cxd4 {[%clk
0:02:55.1]} 7. Qxd4 {[%clk 0:03:03.6]} 7... Nc6 {[%clk 0:02:54]} 8. Qd1 {[%clk
0:03:02.4]} 8... Bc5 {[%clk 0:02:45.3]} 9. b3 {[%clk 0:03:02.2]} 9... O-O {[%clk
0:02:39.7]} 10. Bb2 {[%clk 0:03:02.1]} 10... Qe7 {[%clk 0:02:34.9]} 11. Nc3
{[%clk 0:02:59.5]} 11... Rad8 {[%clk 0:02:29.4]} 12. Qc1 {[%clk 0:02:56.6]}
12... d5 {[%clk 0:02:23.5]} 13. cxd5 {[%clk 0:02:56.5]} 13... Nxd5 {[%clk
0:02:23.4]} 14. Nxd5 {[%clk 0:02:56.7]} 14... Rxd5 {[%clk 0:02:20.9]} 15. a3
{[%clk 0:02:57.3]} 15... Rd7 {[%clk 0:02:13.6]} 16. b4 {[%clk 0:02:57.2]} 16...
Bd4 {[%clk 0:02:06.5]} 17. e3 {[%clk 0:02:23]} 17... Bxb2 {[%clk 0:02:05]} 18.
Qxb2 {[%clk 0:02:23.9]} 18... Rfd8 {[%clk 0:02:02.4]} 19. Rac1 {[%clk
0:02:23.9]} 19... f6 {[%clk 0:01:54.8]} 20. Rc2 {[%clk 0:02:21.7]} 20... Qf7
{[%clk 0:01:42.7]} 21. h3 {[%clk 0:02:19.3]} 21... Ne7 {[%clk 0:01:36.6]} 22.
Rfc1 {[%clk 0:02:17.1]} 22... Qh5 {[%clk 0:01:18.6]} 23. g4 {[%clk 0:02:15.8]}
23... Qh6 {[%clk 0:01:17.8]} 24. Rc7 {[%clk 0:02:15.2]} 24... Bxf3 {[%clk
0:01:15.5]} 25. Bxf3 {[%clk 0:02:14.4]} 25... Qxh3 {[%clk 0:01:15.2]} 26. Be2
{[%clk 0:02:08.5]} 26... Ng6 {[%clk 0:01:05.7]} 27. Qb3 {[%clk 0:01:51.7]} 27...
Rd5 {[%clk 0:00:54.2]} 28. Qc4 {[%clk 0:01:46.7]} 28... Nh4 {[%clk 0:00:53.1]}
29. Qe4 {[%clk 0:01:47.1]} 29... R8d6 {[%clk 0:00:44.4]} 30. Rc8+ {[%clk
0:01:45.6]} 30... Kf7 {[%clk 0:00:44.5]} 31. R8c7+ {[%clk 0:01:29]} 31... Rd7
{[%clk 0:00:43.9]} 32. R7c6 {[%clk 0:01:27.8]} 32... Re5 {[%clk 0:00:42.8]} 33.
Qh1 {[%clk 0:01:22.4]} 33... Qxh1+ {[%clk 0:00:40.7]} 34. Kxh1 {[%clk
0:01:23.3]} 34... Rd2 {[%clk 0:00:39.7]} 35. R1c2 {[%clk 0:01:18.9]} 35... Rxc2
{[%clk 0:00:37.1]} 36. Rxc2 {[%clk 0:01:19.8]} 36... Kg6 {[%clk 0:00:35.2]} 37.
Bd3+ {[%clk 0:01:17.5]} 37... Kh6 {[%clk 0:00:34.1]} 38. Rc7 {[%clk 0:01:10]}
38... Rd5 {[%clk 0:00:33.9]} 39. Rc3 {[%clk 0:01:07.2]} 39... Nf3 {[%clk
0:00:31.8]} 40. Be2 {[%clk 0:01:02]} 40... Ne5 {[%clk 0:00:29.8]} 41. f4 {[%clk
0:00:58.3]} 41... Ng6 {[%clk 0:00:29.6]} 42. Kg2 {[%clk 0:00:57.7]} 42... Rd2
{[%clk 0:00:28.2]} 43. Kf3 {[%clk 0:00:58.2]} 43... Nh4+ {[%clk 0:00:27.7]} 44.
Kf2 {[%clk 0:00:57.6]} 44... g5 {[%clk 0:00:27.2]} 45. Rc6 {[%clk 0:00:53.8]}
45... gxf4 {[%clk 0:00:22.4]} 46. exf4 {[%clk 0:00:54.7]} 46... Rd4 {[%clk
0:00:21.9]} 47. Ke3 {[%clk 0:00:49.9]} 47... Rd7 {[%clk 0:00:20.5]} 48. Rxe6
{[%clk 0:00:49.9]} 48... Ng6 {[%clk 0:00:20.6]} 49. Rxf6 {[%clk 0:00:49.1]}
49... Kg7 {[%clk 0:00:20.7]} 50. Re6 {[%clk 0:00:46.5]} 50... Kf7 {[%clk
0:00:20.1]} 51. f5 {[%clk 0:00:46.6]} 51... Nh4 {[%clk 0:00:19.4]} 52. Bc4
{[%clk 0:00:45.6]} 52... Kg7 {[%clk 0:00:18.6]} 53. Be2 {[%clk 0:00:39.6]} 53...
Kf7 {[%clk 0:00:16.3]} 54. Rh6 {[%clk 0:00:39.9]} 54... Ng2+ {[%clk 0:00:14.8]}
55. Kf3 {[%clk 0:00:37.9]} 55... Ne1+ {[%clk 0:00:14.7]} 56. Kf2 {[%clk
0:00:38.1]} 56... Nc2 {[%clk 0:00:14.2]} 57. Rxh7+ {[%clk 0:00:37.2]} 57... Ke8
{[%clk 0:00:11.4]} 58. Bb5 {[%clk 0:00:37.7]} 1-0

[Event "*** SCC Grand Prix: Titled Tuesday Blitz"]
[Site "Chess.com"]
[Date "2020.10.06"]
[Round "10"]
[White "norwaytoadog"]
[Black "MPGM"]
[Result "1-0"]
[WhiteElo "2318"]
[BlackElo "2437"]
[TimeControl "180+1"]
[EndTime "11:58:51 PDT"]
[Termination "norwaytoadog won by resignation"]

1. e4 {[%clk 0:02:59.4]} 1... e5 {[%clk 0:03:00]} 2. Nf3 {[%clk 0:02:59.2]} 2...
Nc6 {[%clk 0:03:00.4]} 3. Bb5 {[%clk 0:02:59.1]} 3... Nge7 {[%clk 0:02:58.7]} 4.
c3 {[%clk 0:02:58.1]} 4... Ng6 {[%clk 0:02:57.2]} 5. d4 {[%clk 0:02:46.9]} 5...
Be7 {[%clk 0:02:38.9]} 6. d5 {[%clk 0:02:20.1]} 6... Nb8 {[%clk 0:02:37.1]} 7.
c4 {[%clk 0:02:17]} 7... O-O {[%clk 0:02:35.2]} 8. Be3 {[%clk 0:02:14.7]} 8...
Bb4+ {[%clk 0:02:34]} 9. Nbd2 {[%clk 0:02:08.9]} 9... d6 {[%clk 0:02:32.1]} 10.
O-O {[%clk 0:02:03.9]} 10... Bxd2 {[%clk 0:02:19.6]} 11. Nxd2 {[%clk 0:02:00.5]}
11... f5 {[%clk 0:02:17.8]} 12. f3 {[%clk 0:01:56.8]} 12... Nd7 {[%clk
0:02:05.1]} 13. b4 {[%clk 0:01:52.7]} 13... Nf6 {[%clk 0:02:00.8]} 14. c5 {[%clk
0:01:45.2]} 14... fxe4 {[%clk 0:02:00]} 15. Nxe4 {[%clk 0:01:42.2]} 15... Nxe4
{[%clk 0:01:57.6]} 16. fxe4 {[%clk 0:01:41.1]} 16... Nf4 {[%clk 0:01:53.4]} 17.
g3 {[%clk 0:00:56.2]} 17... Ng6 {[%clk 0:01:50.4]} 18. Qh5 {[%clk 0:00:47.2]}
18... Bd7 {[%clk 0:01:35.6]} 19. Bxd7 {[%clk 0:00:41.7]} 19... Qxd7 {[%clk
0:01:36.5]} 20. Rf5 {[%clk 0:00:38.3]} 20... Ne7 {[%clk 0:01:32.7]} 21. Rxf8+
{[%clk 0:00:28.2]} 21... Rxf8 {[%clk 0:01:33.6]} 22. Rf1 {[%clk 0:00:26.3]}
22... Rxf1+ {[%clk 0:01:32.1]} 23. Kxf1 {[%clk 0:00:26.7]} 23... h6 {[%clk
0:01:21.5]} 24. Kg2 {[%clk 0:00:25.2]} 24... Qc8 {[%clk 0:01:09.7]} 25. Qe2
{[%clk 0:00:23.6]} 25... a6 {[%clk 0:01:06.2]} 26. h3 {[%clk 0:00:23.5]} 26...
Qe8 {[%clk 0:01:04.4]} 27. Qg4 {[%clk 0:00:22.7]} 27... Ng6 {[%clk 0:01:00.9]}
28. Qf5 {[%clk 0:00:21.1]} 28... Nf8 {[%clk 0:00:58.7]} 29. h4 {[%clk
0:00:20.2]} 29... Qb5 {[%clk 0:00:55.7]} 30. cxd6 {[%clk 0:00:18.6]} 30... cxd6
{[%clk 0:00:55.3]} 31. Qf2 {[%clk 0:00:15.3]} 31... Qxb4 {[%clk 0:00:54]} 32.
Qf5 {[%clk 0:00:13.9]} 32... Qb2+ {[%clk 0:00:51.7]} 33. Kh3 {[%clk 0:00:13.9]}
33... Qxa2 {[%clk 0:00:50.7]} 34. Qg4 {[%clk 0:00:12]} 34... Qb3 {[%clk
0:00:48.9]} 35. Bxh6 {[%clk 0:00:11]} 35... g6 {[%clk 0:00:32.7]} 36. Qc8 {[%clk
0:00:10.8]} 36... Qf3 {[%clk 0:00:31.5]} 37. Qe8 {[%clk 0:00:08.5]} 37... Qh1+
{[%clk 0:00:28.5]} 38. Kg4 {[%clk 0:00:08.9]} 38... Qxe4+ {[%clk 0:00:29.1]} 39.
Kh3 {[%clk 0:00:09]} 39... Qh1+ {[%clk 0:00:19.7]} 40. Kg4 {[%clk 0:00:09.2]}
40... Qe4+ {[%clk 0:00:19.9]} 41. Kh3 {[%clk 0:00:09.5]} 41... Qf5+ {[%clk
0:00:20.5]} 42. Kg2 {[%clk 0:00:08.7]} 42... Qf7 {[%clk 0:00:21]} 43. Qc8 {[%clk
0:00:06.8]} 43... Qxd5+ {[%clk 0:00:20.9]} 44. Kh2 {[%clk 0:00:04.2]} 44... Qf7
{[%clk 0:00:20.4]} 45. g4 {[%clk 0:00:01.9]} 45... a5 {[%clk 0:00:19.8]} 46. h5
{[%clk 0:00:01.3]} 46... gxh5 {[%clk 0:00:19.7]} 47. g5 {[%clk 0:00:01.7]} 47...
Qf2+ {[%clk 0:00:16.1]} 48. Kh3 {[%clk 0:00:01.9]} 48... Qf3+ {[%clk 0:00:15.5]}
49. Kh2 {[%clk 0:00:02.3]} 49... Qf2+ {[%clk 0:00:15.9]} 50. Kh3 {[%clk
0:00:02.7]} 50... a4 {[%clk 0:00:15.9]} 51. g6 {[%clk 0:00:02.7]} 51... Qf1+
{[%clk 0:00:14.6]} 52. Kh2 {[%clk 0:00:02.8]} 52... Qe2+ {[%clk 0:00:14.7]} 53.
Kh1 {[%clk 0:00:02.4]} 53... Qd1+ {[%clk 0:00:13.1]} 54. Kh2 {[%clk 0:00:02.5]}
54... Qc2+ {[%clk 0:00:12.3]} 55. Qxc2 {[%clk 0:00:02.2]} 1-0

[Event "*** SCC Grand Prix: Titled Tuesday Blitz"]
[Site "Chess.com"]
[Date "2020.10.06"]
[Round "10"]
[White "mhennigan"]
[Black "Morshynska"]
[Result "1-0"]
[WhiteElo "2410"]
[BlackElo "2229"]
[TimeControl "180+1"]
[EndTime "11:58:51 PDT"]
[Termination "mhennigan won on time"]

1. g3 {[%clk 0:03:00.9]} 1... d5 {[%clk 0:02:59.6]} 2. Bg2 {[%clk 0:03:00.9]}
2... c6 {[%clk 0:02:59.4]} 3. d3 {[%clk 0:03:01.4]} 3... Nf6 {[%clk 0:02:59.4]}
4. Nf3 {[%clk 0:03:01.4]} 4... Bg4 {[%clk 0:02:56.9]} 5. O-O {[%clk 0:03:01.6]}
5... Nbd7 {[%clk 0:02:54.4]} 6. Nc3 {[%clk 0:03:01]} 6... e6 {[%clk 0:02:49.8]}
7. h3 {[%clk 0:02:58.9]} 7... Bxf3 {[%clk 0:02:48.4]} 8. Bxf3 {[%clk 0:02:58.1]}
8... g6 {[%clk 0:02:48.9]} 9. Bg2 {[%clk 0:02:52.2]} 9... Bg7 {[%clk 0:02:48.7]}
10. e4 {[%clk 0:02:51.8]} 10... O-O {[%clk 0:02:49.2]} 11. f4 {[%clk 0:02:49.8]}
11... dxe4 {[%clk 0:02:36.4]} 12. dxe4 {[%clk 0:02:49]} 12... Nc5 {[%clk
0:02:31]} 13. Be3 {[%clk 0:02:31.8]} 13... Qa5 {[%clk 0:02:12.8]} 14. a3 {[%clk
0:02:24.6]} 14... Na4 {[%clk 0:02:10]} 15. Nxa4 {[%clk 0:02:06.5]} 15... Qxa4
{[%clk 0:02:10.9]} 16. b3 {[%clk 0:02:06.5]} 16... Qa5 {[%clk 0:01:56.6]} 17.
Qe1 {[%clk 0:01:35.3]} 17... Qxe1 {[%clk 0:01:32.1]} 18. Raxe1 {[%clk
0:01:34.2]} 18... Rfd8 {[%clk 0:01:31]} 19. Rd1 {[%clk 0:01:33.5]} 19... b6
{[%clk 0:01:19.4]} 20. c4 {[%clk 0:01:19.4]} 20... Nd7 {[%clk 0:00:55.2]} 21. e5
{[%clk 0:01:18.1]} 21... Rac8 {[%clk 0:00:54]} 22. b4 {[%clk 0:01:06.4]} 22...
Nb8 {[%clk 0:00:53.1]} 23. Kf2 {[%clk 0:00:48.4]} 23... f6 {[%clk 0:00:51]} 24.
exf6 {[%clk 0:00:46.2]} 24... Bxf6 {[%clk 0:00:51.9]} 25. g4 {[%clk 0:00:43.6]}
25... Bb2 {[%clk 0:00:47.6]} 26. a4 {[%clk 0:00:37.7]} 26... Kf7 {[%clk
0:00:39.1]} 27. Be4 {[%clk 0:00:33.7]} 27... Ba3 {[%clk 0:00:28.1]} 28. b5
{[%clk 0:00:33]} 28... cxb5 {[%clk 0:00:26.7]} 29. cxb5 {[%clk 0:00:32.8]} 29...
Ke7 {[%clk 0:00:21.6]} 30. Kf3 {[%clk 0:00:25.5]} 30... Bc5 {[%clk 0:00:19.8]}
31. Bc1 {[%clk 0:00:25]} 31... Nd7 {[%clk 0:00:17.1]} 32. g5 {[%clk 0:00:21.1]}
32... e5 {[%clk 0:00:14.9]} 33. f5 {[%clk 0:00:20.1]} 33... gxf5 {[%clk
0:00:13.5]} 34. Bxf5 {[%clk 0:00:20.2]} 34... Rb8 {[%clk 0:00:13.1]} 35. Bxh7
{[%clk 0:00:14.2]} 35... Bd4 {[%clk 0:00:12.7]} 36. Ba3+ {[%clk 0:00:10.5]}
36... Ke6 {[%clk 0:00:12.1]} 37. Kg4 {[%clk 0:00:09.6]} 37... Nc5 {[%clk
0:00:11.5]} 38. Bf5+ {[%clk 0:00:08.2]} 38... Kd5 {[%clk 0:00:11.8]} 39. h4
{[%clk 0:00:08.3]} 39... e4 {[%clk 0:00:11.4]} 40. h5 {[%clk 0:00:08.1]} 40...
e3 {[%clk 0:00:11]} 41. Rfe1 {[%clk 0:00:08.3]} 41... Re8 {[%clk 0:00:10.5]} 42.
h6 {[%clk 0:00:08.4]} 42... Ke5 {[%clk 0:00:09.1]} 43. g6 {[%clk 0:00:07]} 43...
Rh8 {[%clk 0:00:08.4]} 44. h7 {[%clk 0:00:06.1]} 44... Rb7 {[%clk 0:00:08]} 45.
Rxd4 {[%clk 0:00:05.5]} 45... Kxd4 {[%clk 0:00:07]} 46. Bb2+ {[%clk 0:00:05.6]}
46... Kc4 {[%clk 0:00:06.7]} 47. Bxh8 {[%clk 0:00:06.1]} 47... Nxa4 {[%clk
0:00:05.7]} 48. g7 {[%clk 0:00:06]} 48... Kxb5 {[%clk 0:00:03.5]} 49. g8=Q
{[%clk 0:00:05.9]} 49... a5 {[%clk 0:00:02.8]} 50. Qd5+ {[%clk 0:00:05.4]} 50...
Ka6 {[%clk 0:00:02.8]} 51. Bd4 {[%clk 0:00:05.1]} 51... Ka7 {[%clk 0:00:02.7]}
52. Be4 {[%clk 0:00:04.6]} 52... Rb8 {[%clk 0:00:02]} 53. Qd7+ {[%clk
0:00:04.1]} 53... Ka6 {[%clk 0:00:02]} 54. Qxa4 {[%clk 0:00:04.5]} 1-0

[Event "*** SCC Grand Prix: Titled Tuesday Blitz"]
[Site "Chess.com"]
[Date "2020.10.06"]
[Round "10"]
[White "Gurvich_Vitaly"]
[Black "AlexeiShirov"]
[Result "0-1"]
[WhiteElo "2651"]
[BlackElo "2844"]
[TimeControl "180+1"]
[EndTime "11:58:54 PDT"]
[Termination "AlexeiShirov won on time"]

1. c4 {[%clk 0:03:00.9]} 1... c6 {[%clk 0:02:59.5]} 2. Nf3 {[%clk 0:02:57.9]}
2... d5 {[%clk 0:02:59.3]} 3. e3 {[%clk 0:02:58.2]} 3... Nf6 {[%clk 0:02:57.2]}
4. b3 {[%clk 0:02:58.2]} 4... Bg4 {[%clk 0:02:52.3]} 5. Bb2 {[%clk 0:02:58.1]}
5... Nbd7 {[%clk 0:02:50.3]} 6. h3 {[%clk 0:02:57.9]} 6... Bxf3 {[%clk
0:02:45.6]} 7. Qxf3 {[%clk 0:02:58.8]} 7... e5 {[%clk 0:02:45.5]} 8. cxd5 {[%clk
0:02:58.6]} 8... cxd5 {[%clk 0:02:43.9]} 9. Bb5 {[%clk 0:02:57.5]} 9... Bd6
{[%clk 0:02:31.4]} 10. O-O {[%clk 0:02:31.9]} 10... O-O {[%clk 0:02:28.5]} 11.
Nc3 {[%clk 0:01:47.2]} 11... e4 {[%clk 0:02:27.3]} 12. Qd1 {[%clk 0:01:46.6]}
12... Ne5 {[%clk 0:02:24.2]} 13. d4 {[%clk 0:01:36.7]} 13... Ng6 {[%clk
0:02:22.9]} 14. f4 {[%clk 0:01:26.4]} 14... Nh4 {[%clk 0:02:10.1]} 15. Qe1
{[%clk 0:01:16.4]} 15... Nh5 {[%clk 0:01:53]} 16. Be2 {[%clk 0:00:46.3]} 16...
g6 {[%clk 0:01:48.9]} 17. Nxd5 {[%clk 0:00:41.5]} 17... Ng7 {[%clk 0:01:46.2]}
18. Nc3 {[%clk 0:00:34.3]} 18... Re8 {[%clk 0:01:43.8]} 19. Qf2 {[%clk
0:00:33.6]} 19... Rc8 {[%clk 0:01:39.1]} 20. Rac1 {[%clk 0:00:31.5]} 20... Bb4
{[%clk 0:01:32.7]} 21. a3 {[%clk 0:00:20.5]} 21... Ba5 {[%clk 0:01:31.6]} 22. b4
{[%clk 0:00:20]} 22... Bb6 {[%clk 0:01:30.9]} 23. Rfd1 {[%clk 0:00:18.1]} 23...
Nhf5 {[%clk 0:01:29.4]} 24. Na4 {[%clk 0:00:17.7]} 24... Bc7 {[%clk 0:01:24.8]}
25. Nc5 {[%clk 0:00:17.4]} 25... b6 {[%clk 0:01:23.2]} 26. Nb3 {[%clk
0:00:15.9]} 26... h5 {[%clk 0:01:20.2]} 27. Ba6 {[%clk 0:00:15.6]} 27... Rb8
{[%clk 0:01:18.4]} 28. d5 {[%clk 0:00:15.4]} 28... Bd6 {[%clk 0:01:15.4]} 29.
Bb5 {[%clk 0:00:13.6]} 29... Re7 {[%clk 0:01:11.7]} 30. Bc6 {[%clk 0:00:12.7]}
30... Rc7 {[%clk 0:01:07.8]} 31. Kh2 {[%clk 0:00:08.3]} 31... h4 {[%clk
0:01:06.8]} 32. Kg1 {[%clk 0:00:08.2]} 32... Nh5 {[%clk 0:01:05.3]} 33. Nd2
{[%clk 0:00:08]} 33... Nhg3 {[%clk 0:01:04.6]} 34. Ba1 {[%clk 0:00:06.8]} 34...
Bf8 {[%clk 0:01:01]} 35. Nc4 {[%clk 0:00:06.6]} 35... Bg7 {[%clk 0:00:59.1]} 36.
Bxg7 {[%clk 0:00:06.1]} 36... Nxg7 {[%clk 0:00:56.3]} 37. b5 {[%clk 0:00:05.9]}
37... N7f5 {[%clk 0:00:53.3]} 38. d6 {[%clk 0:00:05.9]} 38... Rcc8 {[%clk
0:00:53.2]} 39. d7 {[%clk 0:00:06.1]} 39... Rc7 {[%clk 0:00:53]} 40. Ne5 {[%clk
0:00:06.6]} 40... Qe7 {[%clk 0:00:50.2]} 41. Qa2 {[%clk 0:00:05.4]} 41... Rd8
{[%clk 0:00:46.6]} 42. Nxg6 {[%clk 0:00:03.4]} 42... Qf6 {[%clk 0:00:44.3]} 43.
Ne5 {[%clk 0:00:03.5]} 43... Nxe3 {[%clk 0:00:44]} 44. Re1 {[%clk 0:00:03.5]}
44... Qxf4 {[%clk 0:00:42.4]} 45. Ng4 {[%clk 0:00:03.7]} 45... Nxg4 {[%clk
0:00:41.1]} 46. hxg4 {[%clk 0:00:03.6]} 46... Rcxd7 {[%clk 0:00:39.9]} 47. Bxd7
{[%clk 0:00:03.2]} 47... Rxd7 {[%clk 0:00:39.9]} 48. Rc8+ {[%clk 0:00:04]} 48...
Kg7 {[%clk 0:00:35.6]} 49. Qb2+ {[%clk 0:00:04.4]} 49... f6 {[%clk 0:00:35.2]}
50. Qc2 {[%clk 0:00:02.5]} 50... e3 {[%clk 0:00:32]} 51. Rc6 {[%clk 0:00:01.7]}
51... Qxg4 {[%clk 0:00:23]} 52. Rc7 {[%clk 0:00:01.2]} 52... e2 {[%clk
0:00:21.3]} 53. Rxd7+ {[%clk 0:00:01.2]} 53... Qxd7 {[%clk 0:00:21.2]} 54. Qc3
{[%clk 0:00:02.1]} 54... Qf5 {[%clk 0:00:20.4]} 55. Kh2 {[%clk 0:00:01.9]} 55...
Qf1 {[%clk 0:00:19.2]} 56. Qc7+ {[%clk 0:00:01.2]} 56... Kg6 {[%clk 0:00:18.3]}
57. Qc2+ {[%clk 0:00:01.6]} 57... f5 {[%clk 0:00:17.2]} 58. Qc6+ {[%clk
0:00:01.5]} 58... Kg5 {[%clk 0:00:16.4]} 59. Qc1+ {[%clk 0:00:01.5]} 59... Qf4
{[%clk 0:00:14.7]} 0-1